Workbook

Sheet Informe 4
A1: ENTEL PERU S.A.-2018-4 RECONCILIACIÓN DEL ESTADO DE RESULTADOS ESTATUTARIO CON EL DE CONTABILIDAD SEPARADA-21062019
A3: INFORME 4: RECONCILIACIÓN DEL ESTADO DE RESULTADOS ESTATUTARIO CON EL DE CONTABILIDAD SEPARADA
A5: Periodo de reporte: Al 31 de Diciembre 2018
A7: Expresado en Miles Nuevos Soles | B7: Estado de Resultados Estatutario | C7: Ajustes | D7: Estado de Resultados de Contabilidad Separada | E7: Nota
A8: INGRESOS | B8: =SUM(B9:B13) -> 2510466114 | C8: =SUM(C9:C13) -> -39922968.4 | D8: =+B8+C8 -> 2470543145
A9: Renta Basica Servicios | B9: =+'[1]Hoja Trabajo Informe 4'!G10+'[1]Hoja Trabajo Informe 4'!G11 -> 1114268838 | C9: =+'[1]Hoja Trabajo Informe 4'!H11 -> 0 | D9: 1114268838
A10: Uso de Servicios | B10: =SUM('[1]Hoja Trabajo Informe 4'!G12:G21)+SUM('[1]Hoja Trabajo Informe 4'!G29)+'[1]Hoja Trabajo Informe 4'!G22+'[1]Hoja Trabajo Informe 4'!G23+'[1]Hoja Trabajo Informe 4'!G24+'[1]Hoja Trabajo Informe 4'!G30+'[1]Hoja Trabajo Informe 4'!G25+'[1]Hoja Trabajo Informe 4'!G26 -> 294395514.8 | D10: 294395514.8
A11: Ingresos por servicios de Interconexion | B11: =+'[1]Hoja Trabajo Informe 4'!G27+'[1]Hoja Trabajo Informe 4'!G28 -> 189763772.3 | C11: =+'[1]Hoja Trabajo Informe 4'!H27 -> 4263815.69 | D11: 194027588
A12: Ingresos por venta de terminales | B12: =SUM('[1]Hoja Trabajo Informe 4'!G53:G67) -> 810024303.7 | C12: =+'[1]Hoja Trabajo Informe 4'!H59 -> 0 | D12: 810024303.7
A13: Otros | B13: =SUM('[1]Hoja Trabajo Informe 4'!G32:G49) -> 102013684.6 | C13: =SUM('[1]Hoja Trabajo Informe 4'!H32:H49) -> -44186784.09 | D13: 57826900.53
A14: GASTOS | B14: =SUM(B15:B21) -> -2779182875 | C14: =SUM(C15:C21) -> 1472614.1 | D14: =SUM(D15:D21) -> -2777710261
A15: Gastos de personal | B15: =SUM('[1]Hoja Trabajo Informe 4'!G69:G107) -> -350875462.7 | C15: 0 | D15: =+B15+C15 -> -350875462.7
A16: Gastos generales y administrativos | B16: =SUM('[1]Hoja Trabajo Informe 4'!G132:G287) -> -1694881643 | C16: =+'[1]Hoja Trabajo Informe 4'!H255 -> 1472614.1 | D16: =+B16+C16 -> -1693409028
A17: Existencias | B17: =SUM('[1]Hoja Trabajo Informe 4'!G109:G126) -> -771390498.1 | C17: 0 | D17: -771390498.1
A18: Capitalización de Gastos por Construcción de Planta o Trabajo para el Inmovilizado | B18: =+'[1]Hoja Trabajo Informe 4'!G128 -> 45677728.4 | C18: 0 | D18: 45677728.4
A19: Honorarios por transferencia de capacidad tecnica | C19: 0 | D19: 0
A20: Provisión para desvalorización de activos | B20: =+'[1]Hoja Trabajo Informe 4'!G130 -> -7713000 | C20: 0 | D20: -7713000
A21: Otros Gastos Operativos | C21: 0 | D21: 0
A22: UTILIDAD (PÉRDIDA) DE OPERACIÓN (EBITDA) | B22: =+B8+B14 -> -268716761.1 | C22: =+C8+C14 -> -38450354.3 | D22: =+D8+D14 -> -307167115.4
A23: Depreciación | B23: =SUM('[1]Hoja Trabajo Informe 4'!G289:G330) -> -169776728.8 | C23: =+'[1]Hoja Trabajo Informe 4'!H289+'[1]Hoja Trabajo Informe 4'!H313+'[1]Hoja Trabajo Informe 4'!H331 -> 11994410.3 | D23: -157782318.5
A24: Amortización | B24: =SUM('[1]Hoja Trabajo Informe 4'!G334:G341) -> -66999054.19 | C24: =+'[1]Hoja Trabajo Informe 4'!H342 -> 813330.7944 | D24: -66185723.4
A25: Deterioro de Activos Fijos | B25: =+'[1]Hoja Trabajo Informe 4'!G345 -> 0 | D25: 0
A26: UTILIDAD (PÉRDIDA) ANTES DE INTERESES E IMPUESTOS (EBIT) | B26: =+B22+B23+B24+B25 -> -505492544.1 | C26: =+C22+C23+C24 -> -25642613.2 | D26: =+D22+D23+D24+D25 -> -531135157.3
A27: Ingresos Financieros | B27: =SUM('[1]Hoja Trabajo Informe 4'!G383:G385) -> 367696.08 | C27: 0 | D27: 367696.08
A28: Gastos Financieros | B28: =SUM('[1]Hoja Trabajo Informe 4'!G365:G376) -> -252938446.9 | C28: 0 | D28: -252938446.9
A29: Cambios en el valor razonable de instrumentos financieros derivados | B29: =SUM('[1]Hoja Trabajo Informe 4'!G378:G380) -> 6078026.3 | C29: =+'[1]Hoja Trabajo Informe 4'!H378+'[1]Hoja Trabajo Informe 4'!H380+'[1]Hoja Trabajo Informe 4'!H379 -> -6078026.3 | D29: 0
A30: Diferencias de Cambio Neto | B30: =SUM('[1]Hoja Trabajo Informe 4'!G348:G362) -> -202633327.6 | C30: 0 | D30: -202633327.6
A31: UTILIDAD (PÉRDIDA) ANTES DE IMPUESTOS | B31: =+B26+B27+B28+B29+B30 -> -954618596.3 | C31: =+C26+C27+C28+C29+C30 -> -31720639.5 | D31: =+D26+D27+D28+D29+D30 -> -986339235.8
A32: impuestos a las ganancias | B32: =SUM('[1]Hoja Trabajo Informe 4'!G388:G390) -> 274381235.3 | D32: 274381235.3
A33: UTILIDAD (PÉRDIDA) NETA | B33: =+B31+B32 -> -680237361 | C33: =+C31+C32 -> -31720639.5 | D33: =+D31+D32 -> -711958000.5
